bitfinex/quotes_ETHUSD_20250611
["timestamp","ask_amount","ask_price","bid_price","bid_amount"]
[1749634569765,1.648,2767.3,2766.6,3.698]
[1749634569965,0.55,2767.2,2766.9,0.56576508]
[1749634570272,0.55,2767.2,2766.9,3.698]
[1749634570680,0.55,2767.2,2767.0,10.0]
[1749634571202,0.55,2767.2,2766.7,1.46403908]
[1749634571203,0.1808,2767.1,2766.7,1.46403908]
[1749634571404,0.1808,2767.1,2766.8,3.698]
[1749634571580,0.55,2767.2,2766.9,10.0]
[1749634572121,1.555,2766.9,2766.7,0.965]
[1749634572404,0.1808,2766.8,2766.7,0.965]
[1749634572705,0.1808,2766.8,2766.7,14.663]
[1749634573767,0.1808,2766.8,2766.7,10.0]
[1749634573971,0.1808,2766.8,2766.7,14.663]
[1749634578483,0.1808,2766.8,2766.7,50.96859595]
[1749634578811,0.1808,2766.8,2766.7,51.99715011]
[1749634579611,0.1808,2767.0,2766.9,40.0]
[1749634579810,0.1808,2767.0,2766.9,50.00359595]
[1749634581800,0.1808,2767.0,2766.9,31.36159595]
[1749634582005,0.1808,2767.0,2766.9,20.187]
[1749634582614,0.1808,2767.0,2766.9,0.964]
[1749634582818,0.98863959,2767.0,2766.9,0.964]
[1749634583016,0.1808,2767.0,2766.9,0.964]
[1749634583599,0.1808,2767.0,2766.6,10.0]
[1749634583815,0.1808,2767.0,2766.7,4.662]
[1749634584020,1.592,2767.2,2766.7,4.662]
[1749634584182,0.1808,2766.8,2766.7,4.662]
[1749634584911,0.1808,2766.8,2766.6,10.0]
[1749634585083,0.1808,2766.8,2766.7,4.662]
[1749634585506,0.1808,2766.8,2766.6,10.0]
[1749634585695,0.1808,2766.8,2766.7,4.662]
[1749634586110,0.1808,2766.8,2766.7,0.964]
[1749634586379,1.7709,2766.8,2766.7,4.662]
[1749634592187,0.1808,2766.8,2766.7,4.662]
[1749634592589,0.1808,2766.8,2766.7,0.964]
[1749634593028,0.9898896,2766.8,2766.7,4.662]
[1749634593189,1.5398896,2766.8,2766.7,4.662]
[1749634595545,1.5398896,2766.8,2766.6,10.0]
[1749634595728,1.5398896,2766.8,2766.7,4.662]
[1749634596419,0.7308,2766.8,2766.7,4.662]
[1749634597534,5.4308,2766.8,2766.7,4.662]
[1749634598520,6.29492967,2766.8,2766.7,4.662]
[1749634599093,5.4308,2766.8,2766.7,4.662]
[1749634599299,6.2950204,2766.8,2766.7,4.662]
[1749634601711,5.7450204,2766.8,2766.7,4.662]
[1749634603242,5.7450204,2766.8,2766.7,14.662]
[1749634603449,1.0450204,2766.8,2766.7,14.662]
[1749634605176,1.0450204,2766.8,2766.7,10.0]
[1749634605321,1.0450204,2766.8,2766.7,14.662]
[1749634606337,1.0450204,2766.8,2766.7,10.0]
[1749634606529,1.0450204,2766.8,2766.7,14.662]
[1749634606860,2.1366,2766.6,2766.5,9.352]
[1749634607021,0.55,2766.3,2766.2,0.964]
[1749634607224,0.55,2766.3,2764.2,2.87539693]
[1749634607225,0.55,2766.1,2764.2,6.30559595]
[1749634607453,7.89219595,2765.3,2764.6,0.48502835]
[1749634607668,0.8642204,2765.2,2764.7,0.33762044]
[1749634607833,0.8642204,2765.1,2764.8,10.33763376]
[1749634608160,7.89219595,2765.3,2764.9,10.0]
[1749634608336,0.86266961,2765.2,2764.9,13.698]
[1749634608539,0.1808,2765.0,2764.3,30.0]
[1749634608740,0.1808,2764.3,2763.9,0.67983908]
[1749634609046,0.1808,2764.3,2764.2,10.0]
[1749634609245,0.1808,2764.3,2764.2,3.698]
[1749634609650,0.1808,2764.3,2764.2,4.03562985]
[1749634610049,0.1808,2764.3,2764.2,4.37325732]
[1749634610261,0.1808,2764.3,2764.2,0.67525732]
[1749634610557,0.1808,2764.3,2764.2,14.37325732]
[1749634610733,0.1808,2764.3,2764.2,14.03562985]
[1749634611076,0.1808,2764.3,2764.2,14.37326023]
[1749634611428,0.1808,2764.3,2764.2,14.37504382]
[1749634611756,0.1808,2764.3,2764.2,14.03662985]
[1749634611967,0.1808,2764.3,2764.2,14.37504617]
[1749634612134,0.1808,2764.3,2764.2,14.37504514]
[1749634612464,0.1808,2764.3,2764.2,14.37504223]
[1749634612761,0.1808,2764.3,2764.2,4.37505873]
[1749634612965,0.1808,2764.3,2764.2,4.37507539]
[1749634613169,0.1808,2764.3,2764.2,4.37507782]
[1749634613667,0.1808,2764.3,2764.2,4.37507641]
[1749634613839,0.1808,2764.3,2764.2,14.03662985]
[1749634614328,0.1808,2764.3,2764.2,14.37507675]
[1749634614532,0.1808,2764.3,2764.2,14.37507051]
[1749634614751,0.1808,2764.3,2764.2,14.37507062]
[1749634614961,0.1808,2764.3,2764.2,14.3750704]
[1749634615162,0.1808,2764.3,2764.2,24.69807026]
[1749634615363,0.1808,2764.3,2764.2,24.35962985]
[1749634616760,0.1808,2764.3,2764.2,19.69662985]
[1749634616962,0.7308,2764.3,2764.2,20.66062985]
[1749634617170,2.3247,2764.3,2764.2,9.69662985]
[1749634617368,12.21765211,2764.3,2764.2,10.66062985]
[1749634617689,2.55717,2764.3,2764.2,10.66062985]
[1749634617979,2.3247,2764.3,2764.2,20.66062985]
[1749634618649,1.7747,2764.3,2764.2,20.66062985]
[1749634618852,0.1808,2764.3,2764.2,24.36062985]
[1749634622739,0.1808,2764.3,2764.2,19.69662985]
[1749634622953,0.1808,2764.3,2764.2,24.36062985]
[1749634623884,6.3392,2765.2,2764.3,10.0]
[1749634624088,7.17632828,2765.2,2764.5,10.0]
[1749634624288,0.55,2764.8,2764.6,0.964]
[1749634624583,5.25,2764.7,2764.6,0.964]
[1749634624785,6.891,2764.7,2764.6,0.964]
[1749634625106,7.0718,2764.7,2764.6,0.964]
[1749634626400,7.77898,2764.7,2764.6,0.964]
[1749634626570,0.55,2764.6,2764.5,0.40043651]
[1749634626752,5.25,2764.6,2764.5,1.36443651]
[1749634626954,5.25,2764.6,2764.5,0.964]
[1749634633179,0.1808,2764.7,2764.5,0.964]
[1749634633375,0.1808,2764.7,2764.5,4.665]
[1749634633978,0.1808,2764.7,2764.6,10.0]
[1749634634518,0.1808,2764.7,2764.6,20.0]
[1749634634722,0.1808,2764.7,2764.6,5.05763914]
[1749634634884,0.1808,2764.7,2764.6,5.05663914]
[1749634635085,0.1808,2764.7,2764.6,0.39263914]
[1749634635324,1.04166846,2764.7,2764.6,5.05663914]
[1749634635801,1.59166846,2764.7,2764.6,5.05663914]
[1749634636221,1.59166846,2764.7,2764.6,1.35663914]
[1749634636222,9.62181125,2764.7,2764.6,1.35663914]
[1749634636524,7.17967173,2764.7,2764.6,1.35663914]
[1749634636701,5.74166846,2764.7,2764.6,1.35663914]
[1749634636901,6.82016168,2764.7,2764.6,1.35663914]
[1749634637097,5.74166846,2764.7,2764.6,1.35663914]
[1749634637308,7.72967173,2764.7,2764.6,1.35663914]
[1749634640997,7.72967173,2764.7,2764.6,0.39263914]
[1749634641333,9.35116949,2764.7,2764.6,1.35663914]
[1749634642137,7.72967173,2764.7,2764.6,1.35663914]
[1749634644799,5.74166846,2764.7,2764.6,1.35663914]
[1749634645008,6.82274836,2764.7,2764.6,1.69508426]
[1749634645224,6.82274836,2764.7,2764.6,1.35663914]
[1749634645857,5.74166846,2764.7,2764.6,1.35663914]
[1749634646917,5.74166846,2764.7,2764.6,11.35663914]
[1749634647747,5.74166846,2764.7,2764.6,11.69503787]
[1749634647953,5.74166846,2764.7,2764.6,11.35663914]
[1749634648857,6.29166846,2764.7,2764.6,0.39263914]
[1749634649069,9.13519437,2764.7,2764.6,0.39263914]
[1749634649272,9.13950798,2764.7,2764.6,0.39263914]
[1749634649425,9.13950798,2764.7,2764.6,1.35663914]
[1749634650124,7.70150471,2764.7,2764.6,1.35663914]
[1749634650324,9.31010471,2764.7,2764.6,1.35663914]
[1749634650551,9.31010471,2764.7,2764.6,0.39263914]
[1749634650869,11.46985593,2764.7,2764.6,1.35663914]
[1749634651430,11.47251261,2764.7,2764.6,1.35663914]
[1749634651628,9.31010471,2764.7,2764.6,1.35663914]
[1749634652132,8.76010471,2764.7,2764.6,0.964]
[1749634652331,9.31010471,2764.7,2764.6,0.964]
[1749634652662,9.30991587,2764.7,2764.6,0.964]
[1749634653173,9.30991587,2764.7,2764.3,10.0]
[1749634653341,0.55,2764.3,2764.2,9.69662985]
[1749634653658,3.06239323,2764.3,2764.2,10.66062985]
[1749634653961,4.50266944,2764.3,2764.2,10.66062985]
[1749634654332,4.50265104,2764.3,2764.2,9.69662985]
[1749634654680,7.76239323,2764.3,2764.2,10.66062985]
[1749634654825,11.56647951,2764.3,2764.2,10.66062985]
[1749634655224,9.40537815,2764.3,2764.2,10.66062985]
[1749634656456,10.84502308,2764.3,2764.2,10.66062985]
[1749634656844,9.40537815,2764.3,2764.2,10.66062985]
[1749634657659,11.56647951,2764.3,2764.2,10.66062985]
[1749634657859,15.73093279,2764.3,2764.2,10.66062985]
[1749634658045,9.40537815,2764.3,2764.2,10.66062985]
[1749634658249,0.55,2764.0,2762.7,9.365]
[1749634658453,0.55,2763.2,2762.9,3.7]
[1749634658641,0.86499323,2763.1,2763.0,10.3377]
[1749634658822,1.07919791,2763.5,2763.0,46.66325464]
[1749634659021,0.86248703,2763.4,2763.3,40.3377]
[1749634659226,0.55,2763.8,2763.5,10.0]
[1749634659450,0.55,2763.8,2763.7,10.0]
[1749634659650,0.8623794,2763.8,2763.7,10.0]
[1749634659838,1.0431794,2763.8,2763.7,10.0]
[1749634660034,1.04317604,2763.8,2763.7,10.0]
[1749634661454,0.1808,2763.8,2763.7,10.0]
[1749634663046,0.1808,2763.8,2763.6,4.665]
[1749634663047,0.1808,2763.8,2763.3,0.3377]
[1749634663233,0.1808,2763.8,2763.5,10.0]
[1749634663435,4.7,2763.9,2763.7,10.0]
[1749634663659,0.86205684,2763.8,2763.7,10.0]
[1749634663840,0.55,2763.7,2763.5,10.0]
[1749634664069,0.55,2763.5,2763.2,3.701]
[1749634664270,0.86205298,2763.4,2763.3,0.964]
[1749634664456,1.04285298,2763.4,2762.8,10.3377]
[1749634664663,0.86205298,2763.3,2763.0,10.0]
[1749634664863,4.7,2763.4,2763.2,10.0]
[1749634665160,5.25,2763.4,2763.3,13.701]
[1749634665473,6.11176678,2763.4,2763.3,13.701]
[1749634665639,6.29256678,2763.4,2763.3,13.701]
[1749634666866,6.29256678,2763.4,2763.3,10.0]
[1749634668939,5.4308,2763.4,2763.3,10.0]
[1749634670489,4.8808,2763.4,2763.3,10.0]
[1749634670639,4.8808,2763.4,2763.3,16.32555464]
[1749634671081,4.8808,2763.4,2763.3,46.66325464]
[1749634672056,4.8808,2763.4,2763.3,22.0597]
[1749634672566,4.8808,2763.4,2763.3,17.8907]
[1749634673241,4.8808,2763.4,2763.3,14.665]
[1749634674044,4.8808,2763.4,2763.3,51.32825464]
[1749634674536,0.1808,2763.4,2763.3,51.6666244]
[1749634675058,0.1808,2763.4,2763.3,51.66662289]
[1749634675255,0.1808,2763.4,2763.3,51.66662281]
[1749634675459,0.1808,2763.4,2763.3,45.0027]
[1749634675662,0.1808,2763.4,2763.3,51.66662512]
[1749634675937,0.1808,2763.4,2763.3,51.32825464]
[1749634676369,0.1808,2763.4,2763.3,51.66662582]
[1749634676577,0.1808,2763.4,2763.3,51.66662586]
[1749634676883,0.1808,2763.4,2763.3,51.32825464]
[1749634678238,0.1808,2763.4,2763.3,51.66662665]
[1749634678442,0.1808,2763.4,2763.3,51.66662516]
[1749634678715,0.1808,2763.4,2763.3,51.32825464]
[1749634679046,0.1808,2763.4,2763.3,51.66662488]
[1749634679252,0.1808,2763.4,2763.3,51.66662493]
[1749634679450,0.1808,2763.4,2763.3,51.32825464]
[1749634679651,0.1808,2763.4,2763.3,51.66609698]
[1749634679849,0.1808,2763.4,2763.3,51.32825464]
[1749634680828,0.1808,2763.4,2763.3,51.66609487]
[1749634681143,0.1808,2763.4,2763.3,51.32825464]
[1749634681441,0.1808,2763.4,2763.3,51.66609365]
[1749634681938,0.1808,2763.4,2763.3,30.35809695]
[1749634682082,0.1808,2763.4,2763.3,35.02310143]
[1749634682284,0.1808,2763.4,2763.3,10.0]
[1749634682500,0.1808,2763.4,2763.3,0.964]
[1749634682710,1.04417942,2763.4,2763.3,10.964]
[1749634682992,1.59417942,2763.4,2763.3,4.665]
[1749634683205,1.04417942,2763.4,2763.3,4.665]
[1749634683818,0.1808,2763.4,2763.3,21.32825464]
[1749634684131,0.1808,2763.4,2763.3,15.00286611]
[1749634684296,0.1808,2763.4,2763.3,10.0]
[1749634684507,0.1808,2763.4,2763.3,15.00286281]
[1749634685136,0.1808,2763.4,2763.3,50.99055464]
[1749634686540,0.1808,2763.4,2763.3,14.665]
[1749634686840,0.1808,2763.4,2763.3,15.00286379]
[1749634686990,0.1808,2763.4,2763.3,14.665]
[1749634687194,0.1808,2763.4,2763.3,15.00286126]
[1749634687404,0.1808,2763.4,2763.3,15.00286119]
[1749634687607,0.1808,2763.4,2763.3,44.665]
[1749634687788,0.1808,2763.4,2763.3,45.00285815]
[1749634688114,0.1808,2763.4,2763.3,45.0028376]
[1749634688328,0.1808,2763.4,2763.3,45.0028361]
[1749634688504,0.1808,2763.4,2763.3,44.665]
[1749634688711,0.1808,2763.4,2763.3,45.00283597]
[1749634688914,0.1808,2763.4,2763.3,44.665]
[1749634689292,0.1808,2763.4,2763.3,45.00247218]
[1749634689493,0.1808,2763.4,2763.3,45.00247219]
[1749634689704,0.1808,2763.4,2763.3,44.665]
[1749634689903,0.1808,2763.4,2763.3,45.00247081]
[1749634690393,0.1808,2763.4,2763.3,44.665]
[1749634690593,0.1808,2763.4,2763.3,45.00247061]
[1749634690835,0.1808,2763.4,2763.3,44.665]
[1749634691422,0.1808,2763.4,2763.3,28.34]
[1749634691620,0.1808,2763.4,2763.3,12.144]
[1749634691826,0.1808,2763.4,2763.3,16.809]
[1749634692021,0.1808,2763.4,2763.3,10.33748717]
[1749634692225,0.1808,2763.4,2763.3,35.92548686]
[1749634692427,0.1808,2763.4,2763.3,14.665]
[1749634692739,0.1808,2763.4,2763.3,15.00249019]
[1749634692950,0.1808,2763.4,2763.3,15.00248839]
[1749634693232,0.1808,2763.4,2763.3,14.665]
[1749634694823,0.1808,2763.4,2763.3,15.00249543]
[1749634694993,0.1808,2763.4,2763.3,14.665]
[1749634695194,0.1808,2763.4,2763.3,15.00249765]
[1749634695529,0.1808,2763.4,2763.3,15.00249521]
[1749634695838,0.1808,2763.4,2763.3,44.665]
[1749634697601,0.1808,2763.4,2763.3,45.00275887]
[1749634697797,0.1808,2763.4,2763.3,44.665]
[1749634698017,0.1808,2763.4,2763.3,45.0027575]
[1749634698343,2.63504624,2764.0,2763.5,30.3377]
[1749634698544,0.86442107,2763.9,2763.6,13.701]
[1749634698803,0.86442107,2763.8,2763.6,13.701]
[1749634698963,2.63504624,2764.0,2763.6,13.701]
[1749634698964,2.63504624,2764.0,2763.7,0.33867065]
[1749634699108,2.63504624,2764.0,2763.9,10.0]
[1749634699314,3.49936817,2764.0,2763.9,10.0]
[1749634699542,3.68016817,2764.0,2763.9,10.0]
[1749634699744,2.12496817,2764.0,2763.9,10.0]
[1749634699978,0.55,2763.9,2763.6,10.0]
[1749634700175,3.55717747,2763.8,2763.7,0.964]
[1749634700455,2.47662193,2763.8,2763.7,10.964]
[1749634700828,3.55747376,2763.8,2763.7,10.964]
[1749634701229,3.73827376,2763.8,2763.7,10.964]
[1749634701448,2.12597376,2763.8,2763.7,10.964]
[1749634702228,2.12597376,2763.8,2763.7,11.30269058]
[1749634702438,2.12597376,2763.8,2763.7,11.30269171]
[1749634702637,2.12597376,2763.8,2763.7,11.30269156]
[1749634702847,2.12597376,2763.8,2763.7,10.964]
[1749634703524,2.64095608,2763.8,2763.7,4.665]
[1749634704268,3.19095608,2763.8,2763.7,4.665]
[1749634704483,3.54755365,2763.8,2763.7,10.0]
[1749634704632,5.05035365,2763.8,2763.7,10.964]
[1749634705041,5.05035365,2763.8,2763.7,10.0]
[1749634705246,3.61290425,2763.8,2763.7,10.964]
[1749634707594,5.05035365,2763.8,2763.7,10.964]
[1749634708241,1.5858,2763.6,2762.7,9.73135952]
[1749634708589,7.19414722,2763.5,2762.8,15.00339738]
[1749634708877,0.86367317,2763.4,2763.1,16.32555464]
[1749634709086,4.7,2763.5,2763.3,10.0]
[1749634709254,7.36539147,2763.6,2763.5,10.0]
[1749634709460,7.14950331,2763.6,2763.5,10.0]
[1749634709653,7.33030331,2763.6,2763.5,10.0]
[1749634710985,7.33030331,2763.6,2763.5,4.667]
[1749634711142,8.86526949,2763.6,2763.5,14.666]
[1749634711345,9.94486096,2763.6,2763.5,10.964]
[1749634711574,8.86526949,2763.6,2763.5,10.964]
[1749634713040,9.94442018,2763.6,2763.5,10.964]
[1749634714044,8.86526949,2763.6,2763.5,10.964]
[1749634714864,8.40936623,2763.6,2763.5,10.964]
[1749634715282,7.33030331,2763.6,2763.5,10.964]
[1749634715586,8.40936623,2763.6,2763.5,10.964]
[1749634717194,5.74450331,2763.6,2763.5,10.964]
[1749634717608,5.74450331,2763.6,2763.5,14.665]
[1749634718634,6.58747993,2763.6,2763.5,10.0]
[1749634718918,6.58747993,2763.6,2763.5,10.964]
[1749634719123,5.74450331,2763.6,2763.5,10.964]
[1749634720201,1.04450331,2763.6,2763.5,10.964]
[1749634720413,1.04450331,2763.6,2763.5,11.30207236]
[1749634720713,0.1808,2763.6,2763.5,11.30206227]
[1749634720923,0.1808,2763.6,2763.5,10.964]
[1749634721415,0.1808,2763.6,2763.5,11.30206475]
[1749634721599,0.1808,2763.6,2763.5,10.964]
[1749634722994,0.1808,2763.6,2763.5,11.30206647]
[1749634723195,0.1808,2763.6,2763.5,11.30206648]
[1749634723521,0.1808,2763.6,2763.5,10.964]
[1749634723726,0.1808,2763.6,2763.5,11.30205544]
[1749634723895,0.1808,2763.6,2763.5,20.66905777]
[1749634724091,0.1808,2763.6,2763.5,20.66906037]
[1749634724292,0.1808,2763.6,2763.5,20.66906039]
[1749634724614,0.1808,2763.6,2763.5,20.331]
[1749634724981,0.1808,2763.6,2763.5,20.6690568]
[1749634725182,0.1808,2763.6,2763.5,20.66905678]
[1749634725418,0.1808,2763.6,2763.5,20.331]
[1749634725622,0.1808,2763.6,2763.5,20.66905936]
[1749634725825,0.1808,2763.6,2763.5,26.65655464]
[1749634726583,0.1808,2763.6,2763.5,19.367]
[1749634726780,0.1808,2763.6,2763.5,24.032]
[1749634727480,0.1808,2763.6,2763.5,24.3697575]
[1749634727828,0.1808,2763.6,2763.5,24.36976003]
[1749634728030,0.1808,2763.6,2763.5,24.032]
[1749634728530,0.1808,2763.6,2763.5,24.36976117]
[1749634728698,0.1808,2763.6,2763.5,24.032]
[1749634729097,0.1808,2763.6,2763.5,24.36976112]
[1749634729407,0.1808,2763.6,2763.5,24.032]
[1749634730192,0.1808,2763.6,2763.5,24.3697603]
[1749634730393,0.1808,2763.6,2763.5,24.36976033]
[1749634730594,0.1808,2763.6,2763.5,23.40575873]
[1749634730799,1.04407794,2763.6,2763.5,24.032]
[1749634731002,1.04407794,2763.6,2763.5,24.36978494]
[1749634731215,1.04407794,2763.6,2763.5,19.367]
[1749634731416,1.04407794,2763.6,2763.5,20.331]
[1749634731583,1.04407794,2763.6,2763.5,24.032]
[1749634733617,1.04407794,2763.6,2763.5,24.3028]
[1749634733921,0.1808,2763.6,2763.5,24.3028]
[1749634734324,0.1808,2763.6,2763.5,24.64053235]
[1749634734531,0.1808,2763.6,2763.5,24.64011905]
[1749634734695,0.1808,2763.6,2763.5,24.3028]
[1749634735193,0.1808,2763.6,2763.5,30.96567722]
[1749634735814,0.1808,2763.6,2763.5,30.62835464]
[1749634736413,0.1808,2763.6,2763.5,60.96567816]
[1749634736587,0.1808,2763.6,2763.5,60.96567438]
[1749634736791,0.1808,2763.6,2763.5,60.62835464]
[1749634737004,0.1808,2763.6,2763.5,60.96566795]
[1749634737187,0.1808,2763.6,2763.5,60.62835464]
[1749634737605,0.1808,2763.6,2763.5,60.9656645]
[1749634737806,0.1808,2763.6,2763.5,60.62835464]
[1749634738229,0.1808,2763.6,2763.5,60.96566421]
[1749634739617,0.1808,2763.6,2763.5,61.30296205]
[1749634739825,0.1808,2763.6,2763.5,61.30296247]
[1749634740025,0.1808,2763.6,2763.5,61.30295888]
[1749634740192,0.1808,2763.6,2763.5,61.30295961]
[1749634740393,0.1808,2763.6,2763.5,60.96566421]
[1749634740595,0.1808,2763.6,2763.5,61.30296176]
[1749634740796,0.1808,2763.6,2763.5,60.96566421]
[1749634741001,0.1808,2763.6,2763.5,61.30291848]
[1749634741204,0.1808,2763.7,2763.6,40.0]
[1749634741536,0.1808,2763.8,2763.6,20.29735464]
[1749634741836,0.1808,2763.8,2763.7,43.9718]
[1749634742410,0.1808,2763.8,2763.7,44.30902962]
[1749634742594,6.2478,2764.5,2764.0,10.0]
[1749634742911,0.862781,2764.4,2764.1,3.701]
[1749634743111,0.862781,2764.3,2763.7,10.2708]
[1749634743304,0.1808,2764.1,2763.9,28.063]
[1749634743505,6.2478,2764.5,2764.1,10.0]
[1749634743735,0.86263854,2764.4,2764.3,40.0]
[1749634743895,0.1808,2764.4,2764.2,0.2708]
[1749634744101,0.1808,2764.4,2764.3,4.665]
[1749634744299,0.1808,2764.4,2764.3,14.665]
[1749634744701,0.1808,2764.4,2764.3,15.00219614]
[1749634744899,0.1808,2764.4,2764.3,21.32863684]
[1749634745133,0.1808,2764.4,2764.3,21.32863644]
[1749634745312,0.1808,2764.4,2764.3,21.32863237]
[1749634745513,0.1808,2764.4,2764.3,20.99055464]
[1749634745935,0.1808,2764.4,2764.3,21.32863027]
[1749634746115,0.1808,2764.4,2764.3,20.99055464]
[1749634746437,0.1808,2764.4,2764.3,14.665]
[1749634746939,0.1808,2764.4,2764.3,15.00308263]
[1749634747446,0.1808,2764.4,2764.3,20.99055464]
[1749634747805,0.1808,2764.4,2764.3,21.685593]
[1749634748005,0.1808,2764.4,2764.3,21.34751684]
[1749634748223,0.1808,2764.4,2764.3,21.68558833]
[1749634748430,0.1808,2764.4,2764.3,21.6855826]
[1749634748741,1.6772,2764.4,2764.3,10.33807995]
[1749634748926,1.6772,2764.4,2764.3,0.964]
[1749634748927,3.0890772,2764.4,2764.3,0.964]
[1749634749418,0.55,2764.1,2763.5,9.70430957]
[1749634749740,2.4143772,2764.0,2763.6,4.664]
[1749634749940,0.1808,2763.7,2763.6,14.664]
[1749634750310,0.1808,2763.7,2763.6,15.0021801]
[1749634750710,0.1808,2763.7,2763.6,15.00217654]
[1749634751039,0.1808,2763.7,2763.6,14.664]
[1749634752010,0.1808,2763.7,2763.6,15.00216373]
[1749634752243,0.1808,2763.7,2763.6,14.664]
[1749634752412,0.1808,2763.7,2763.6,15.00216376]
[1749634752613,0.1808,2763.7,2763.6,14.664]
[1749634752812,0.1808,2763.7,2763.6,15.00216371]
[1749634753112,0.1808,2763.7,2763.6,14.664]
[1749634753644,0.1808,2763.7,2763.6,15.00216183]
[1749634753944,0.1808,2763.7,2763.6,14.664]
[1749634754442,0.1808,2763.7,2763.6,15.00216584]
[1749634754646,0.1808,2763.7,2763.6,15.00216821]
[1749634754853,0.1808,2763.7,2763.6,14.664]
[1749634755165,0.1808,2763.7,2763.6,15.00216894]
[1749634755366,0.1808,2763.7,2763.6,14.664]
[1749634755865,0.1808,2763.7,2763.6,15.00216874]
[1749634756166,0.1808,2763.7,2763.6,15.00216862]
[1749634756364,0.1808,2763.7,2763.6,14.664]
[1749634757447,0.1808,2763.7,2763.6,15.00193768]
[1749634758471,0.1808,2763.7,2763.6,15.33987064]
[1749634758676,0.1808,2763.7,2763.6,15.00193768]
[1749634759368,0.1808,2763.7,2763.6,15.33986898]
[1749634759573,0.1808,2763.7,2763.6,15.51635613]
[1749634759763,0.1808,2763.7,2763.6,15.17843768]
[1749634760272,0.1808,2763.7,2763.6,10.33793768]
[1749634760572,1.6375,2763.7,2763.6,15.3398936]
[1749634760776,2.50012961,2763.7,2763.6,11.30193768]
[1749634760964,3.05012961,2763.7,2763.6,1.30193768]
[1749634761341,3.05012961,2763.7,2763.6,11.30193768]
[1749634761953,7.75012961,2763.7,2763.6,10.33793768]
[1749634762375,7.75012961,2763.7,2763.6,11.30193768]
[1749634766060,7.20012961,2763.7,2763.6,11.30193768]
[1749634766276,5.74342961,2763.7,2763.6,11.30193768]
[1749634769448,4.8808,2763.7,2763.6,11.30193768]
[1749634770452,4.8808,2763.7,2763.6,11.63953493]
[1749634770651,4.8808,2763.7,2763.6,11.30193768]
[1749634770851,4.8808,2763.7,2763.6,11.63989228]
[1749634771071,4.8808,2763.7,2763.6,11.63989238]
[1749634771273,4.8808,2763.7,2763.6,11.63989103]
[1749634771479,4.8808,2763.7,2763.6,11.30193768]
[1749634771789,4.8808,2763.7,2763.6,10.33793768]
[1749634772083,0.1808,2763.7,2763.6,15.34089807]
[1749634772288,0.1808,2763.7,2763.6,15.00293768]
[1749634773182,0.1808,2763.7,2763.6,15.3408895]
[1749634773353,0.1808,2763.7,2763.6,15.00293768]
[1749634773871,0.1808,2763.7,2763.6,15.34087583]
[1749634774077,0.1808,2763.7,2763.6,15.34087693]
[1749634774270,0.1808,2763.7,2763.6,15.00293768]
[1749634774476,0.1808,2763.7,2763.6,15.34087521]
[1749634774786,0.1808,2763.7,2763.6,15.00293768]
[1749634774987,0.1808,2763.7,2763.6,21.32849232]
[1749634775785,0.1808,2763.7,2763.6,21.84292994]
[1749634775985,0.1808,2763.7,2763.6,21.84292647]
[1749634776283,0.1808,2763.7,2763.6,21.50499232]
[1749634776482,0.1808,2763.7,2763.6,21.84292741]
[1749634776650,0.1808,2763.7,2763.6,21.842922]
[1749634776847,0.1808,2763.7,2763.6,21.84291816]
[1749634777162,0.1808,2763.7,2763.6,21.50499232]
[1749634778300,0.1808,2763.7,2763.6,21.84291723]
[1749634778596,0.1808,2763.7,2763.6,21.84290912]
[1749634778768,0.1808,2763.7,2763.6,21.50499232]
[1749634779092,0.1808,2763.7,2763.6,21.84291132]
[1749634779297,0.1808,2763.7,2763.6,21.84290786]
[1749634779601,0.1808,2763.7,2763.6,21.84291157]
[1749634779795,0.1808,2763.7,2763.6,21.50499232]
[1749634780295,0.1808,2763.7,2763.6,21.84290835]
[1749634780493,0.1808,2763.7,2763.6,21.50499232]
[1749634781162,0.1808,2763.7,2763.6,21.84226011]
[1749634781496,0.1808,2763.7,2763.6,21.50499232]
[1749634781996,0.1808,2763.7,2763.6,15.17943768]
[1749634782298,0.1808,2763.7,2763.6,15.51671469]
[1749634782497,0.1808,2763.7,2763.6,15.17943768]
[1749634783403,0.1808,2763.7,2763.6,15.17843768]
[1749634783762,0.1808,2763.7,2763.6,15.51571043]
[1749634784001,0.1808,2763.7,2763.6,15.51571047]
[1749634784175,1.7253,2763.7,2763.6,0.33793768]
[1749634784378,7.2882302,2763.7,2763.6,1.30193768]
[1749634784886,7.2882302,2763.7,2763.6,11.30193768]
[1749634787369,7.28815647,2763.7,2763.6,11.30193768]
[1749634790496,5.74365647,2763.7,2763.6,11.30193768]
[1749634790666,5.74365647,2763.7,2763.6,17.62749232]
[1749634790863,4.8808,2763.7,2763.6,17.62749232]
[1749634791065,4.8808,2763.7,2763.6,11.30193768]
[1749634791694,0.1808,2763.7,2763.6,11.30193768]
[1749634793673,0.1808,2763.7,2763.6,11.63965666]
[1749634793877,0.1808,2763.7,2763.6,11.30193768]
[1749634794180,0.1808,2763.7,2763.6,11.50487842]
[1749634794397,0.1808,2763.7,2763.6,11.6401725]
[1749634794597,0.1808,2763.7,2763.6,11.84311117]
[1749634794901,0.1808,2763.7,2763.6,11.5048743]
[1749634795199,0.1808,2763.7,2763.6,11.64016784]
[1749634795400,0.1808,2763.7,2763.6,11.30193768]
[1749634795602,0.1808,2763.7,2763.6,11.50487387]
[1749634795767,0.1808,2763.7,2763.6,11.64016465]
[1749634795970,0.1808,2763.7,2763.6,11.84310134]
[1749634796306,0.1808,2763.7,2763.6,11.64016569]
[1749634796603,0.1808,2763.7,2763.6,11.5048745]
[1749634796767,0.1808,2763.7,2763.6,11.30193768]
[1749634797472,0.1808,2763.7,2763.6,11.50486855]
[1749634797676,0.1808,2763.7,2763.6,11.50487041]
[1749634798007,0.1808,2763.7,2763.6,11.30193768]